Cogmind - Beta 16 @@@ ROGUE MODE // 2025.10.28 @ 22:27:08 // Winter2019/RPGLIKE Player: Rentaro Result: Heading to fleet! Performance ------------- Evolutions (9) 4500 Regions Visited (13) 2600 Robots Destroyed (795) 3975 Value Destroyed (47545) 47545 Prototype IDs (120) 2400 Alien Tech Used (17) 3400 Bonus (42724) 42724 TOTAL SCORE: 107144 Bonus ------- Triggered High Security 1500 Triggered Max Security 1000 High Alert Combat Kills 22824 Follower Combat Kills 2085 Destroyed Unchained 2000 Used Core Reset Matrix 3000 Hacked Protovariant 500 Scanned by Researcher 1000 Pursued by Intercept 1000 Met Sigix 2000 Activated Exoskeleton 3000 Win 3000 Friendly Fire -185 Cogmind --------- Core Integrity 1675/1750 Matter 395/425 Energy 501/505 System Corruption 1% Temperature Cool (10) Movement Flying (21) Location To Fleet Rendezvous Parts ------- > --- POWER (3) -------- Light Ion Engine Light Quantum Reactor Light Quantum Reactor > --- PROPULSION (6) --- Diametric Drive Diametric Drive Impulse Thruster Array (fused) Cooled Q-thruster Cooled Q-thruster > --- UTILITY (7) ------ Advanced Quantum Shading Machine Structural Scanner (fused) Advanced Targeting Computer Precision Energy Filter Advanced Particle Accelerator Experimental Reaction Control System Experimental Phase Shifter > --- WEAPON (3) ------- Sigix Sheargun Sigix Sheargun Enhanced Nova Cannon > --- INVENTORY (4) ---- Advanced Weapon Cycler Cooled Plasma Cannon Enhanced Nova Cannon Enhanced Nova Cannon Peak State ------------ > --- POWER ------------ Light Ion Engine Light Quantum Reactor Light Quantum Reactor > --- PROPULSION ------- Diametric Drive Diametric Drive Impulse Thruster Array Cooled Q-thruster Cooled Q-thruster > --- UTILITY ---------- Advanced Quantum Shading Machine Structural Scanner Advanced Targeting Computer Precision Energy Filter Advanced Particle Accelerator Experimental Reaction Control System Experimental Phase Shifter > --- WEAPON ----------- Sigix Sheargun Sigix Sheargun Enhanced Nova Cannon > --- INVENTORY -------- Advanced Weapon Cycler Cooled Plasma Cannon Enhanced Nova Cannon Enhanced Nova Cannon [Rating: 156] Favorites ----------- Power Light Deuterium Engine Engine Light Deuterium Engine Power Core Light Fission Core Reactor Light Quantum Reactor Propulsion VTOL Module Leg Aluminum Leg Wheel Compact Wheel Flight Unit VTOL Module Utility Structural Scanner Device Structural Scanner Storage Experimental Matter Compressor Processor Advanced Signal Interpreter Hackware Ghost Barrier Protection Centrium Medium Armor Plating Artifact Core Physics Calibrator Weapon Cooled Plasma Cannon Energy Gun Advanced Beam Rifle Energy Cannon Cooled Plasma Cannon Ballistic Gun Improved Heavy Machine Gun Launcher Sigix Terminator Special Weapon Improved Remote Datajack Impact Weapon Hammer Build | -11 -10 -9 -8 -7 -6 -5 -4 -3 -3 -2 -2 -2 -1 ------- Run | Yrd Mat Mat Mat Fac Fac Fac Fac Res Qua Res Tes Sec Acc Slots Evolved 15 | 3 2 1 1 2 . 2 1 . . 2 . . 1 Power 2 | . . . . . . . . . . 1 . . 1 Propulsion 5 | 1 1 1 . . . 1 . . . 1 . . . Utility 6 | 1 1 . 1 2 . . 1 . . . . . . Weapon 2 | 1 . . . . . 1 . . . . . . . Parts Attached 244 | 7 14 5 8 8 5 13 16 12 40 32 44 25 15 Power 19 | 1 . 1 1 . . . . . 3 2 7 1 3 Engine 7 | 1 . 1 1 . . . . . 1 1 1 . 1 Core 1 | . . . . . . . . . 1 . . . . Reactor 11 | . . . . . . . . . 1 1 6 1 2 Propulsion 27 | 4 5 1 1 . . 2 . 3 3 1 7 . . Treads . | . . . . . . . . . . . . . . Leg 2 | 2 . . . . . . . . . . . . . Wheel 2 | 2 . . . . . . . . . . . . . Hover . | . . . . . . . . . . . . . . Flight 23 | . 5 1 1 . . 2 . 3 3 1 7 . . Utility 162 | . 4 1 2 3 3 6 15 9 32 29 28 20 10 Device 113 | . 1 1 1 3 3 5 8 6 21 25 18 12 9 Storage 1 | . . . . . . . 1 . . . . . . Processor 36 | . 3 . 1 . . 1 4 1 9 2 7 7 1 Hackware 9 | . . . . . . . 2 2 1 2 2 . . Protection 2 | . . . . . . . . . 1 . 1 . . Artifact 1 | . . . . . . . . . . . . 1 . Weapon 36 | 2 5 2 4 5 2 5 1 . 2 . 2 4 2 Energy Gun 14 | 2 1 1 3 2 1 1 . . . . 1 2 . Energy Cannon 18 | . 3 1 1 3 1 3 . . 1 . 1 2 2 Ballistic Gun 1 | . . . . . . 1 . . . . . . . Ballistic Cannon . | . . . . . . . . . . . . . . Launcher 1 | . . . . . . . . . 1 . . . . Special Weapon 1 | . . . . . . . 1 . . . . . . Impact Weapon 1 | . 1 . . . . . . . . . . . . Slashing Weapon . | . . . . . . . . . . . . . . Piercing Weapon . | . . . . . . . . . . . . . . Special Melee Weapon . | . . . . . . . . . . . . . . Unidentified Prototypes 67 | . . 2 4 3 4 5 7 6 15 4 8 8 1 Corrupted Parts 1 | . . . . . . . . . . . 1 . . System Corruption 6 | . . . . . . . . . . . 6 . . Parts Lost 11 | . . . . . . . . . 4 2 5 . . Power 1 | . . . . . . . . . . 1 . . . Propulsion 4 | . . . . . . . . . 2 . 2 . . Utility 5 | . . . . . . . . . 2 1 2 . . Weapon 1 | . . . . . . . . . . . 1 . . Highest Loss Streak 2 | . . . . . . . . . 2 2 2 . . To Critical Strikes . | . . . . . . . . . . . . . . Average Backups 1 | . 1 . . . . . 1 3 1 1 1 . 2 Power . | . . . . . . . . . . . . . . Propulsion . | . 1 . . . . . . . . . . . . Utility . | . . . . . . . 1 3 1 1 1 . 1 Weapon . | . . . . . . . . . . . . . 1 Tool/Special . | . . . . . . . . . . . . . . Unused Backups 6 | . . . . . . . . 2 . . 1 1 2 Power . | . . . . . . . . . . . . . . Propulsion 1 | . . . . . . . . . . . 1 . . Utility 3 | . . . . . . . . 2 . . . 1 . Weapon 2 | . . . . . . . . . . . . . 2 Tool/Special . | . . . . . . . . . . . . . . Average Slot Usage (%) 95 | . 85 99 99 99 99 96 97 99 92 93 91 91 92 Engine 6 | . 12 10 9 7 7 6 6 6 1 . 4 5 4 Reactor 1 | . . . . . . . . . . . 4 5 7 Flight 30 | . 18 39 38 32 30 31 32 31 29 29 28 27 26 Device 27 | . 8 19 22 33 37 33 32 35 20 23 22 26 30 Processor 6 | . 11 10 9 7 6 5 6 1 9 8 7 4 5 Hackware 2 | . . . . . . . . 5 8 6 4 3 . Energy Gun 2 | . 12 . 7 4 . . . . . . . . 9 Energy Cannon 15 | . 11 19 11 11 15 17 19 17 16 17 15 15 5 Peak Build Rating 156 | 5 11 16 28 39 41 60 69 94 106 115 137 152 156 Average Rating 68 | 4 8 13 21 33 38 48 57 79 90 102 122 132 147 On Entrance 56 | . 5 11 14 26 39 36 54 62 90 102 88 135 122 Avg Prop Armor Cover (%) 4 | . . . . . . 2 . . . . 2 8 2 Naked Turns . | . . . . . . . . . . . . . . Heaviest Build 75 | 6 10 11 18 28 28 40 40 40 53 48 61 66 75 Greatest Support 84 | 37 37 25 25 35 35 40 40 46 50 50 61 59 84 Greatest Overweight (x) 3 | . . . . 1 . 1 . . 1 . 1 3 . Average Overweight (x) . | . . . . . . . . . . . . . . Largest Inventory Capacity 4 | 1 2 2 3 3 3 3 4 4 4 4 4 4 4 Average Capacity 3 | 1 1 2 2 3 3 3 3 4 4 4 4 4 4 Most Carried 4 | . 2 2 3 3 3 3 4 4 4 4 4 4 4 Average Carried 2 | . 1 1 2 2 2 2 2 3 3 3 3 3 2 Final Capacity 4 | 1 2 2 3 3 3 3 4 4 4 4 4 4 4 Final Carried 4 | . 2 2 3 3 3 1 4 4 3 4 4 3 4 Class Distribution -------------------- 48% | Hacker-Scout 33% | Wizard-Scout 4% | Sprinter 4% | Alien-Sprinter 3% | Mutant 3% | Hacker-Sprinter Dominant Class ---------------- Sprinter | -10/Materials Hacker-Scout | -9/Materials Hacker-Scout | -8/Materials Hacker-Scout | -7/Factory Hacker-Scout | -6/Factory Hacker-Scout | -5/Factory Hacker-Scout | -4/Factory Wizard-Scout | -3/Research Wizard-Scout | -3/Quarantine Wizard-Scout | -2/Research Wizard-Scout | -2/Testing Wizard-Scout | -2/Section 7 Alien-Sprinter | -1/Access Resources | -11 -10 -9 -8 -7 -6 -5 -4 -3 -3 -2 -2 -2 -1 ----------- Run | Yrd Mat Mat Mat Fac Fac Fac Fac Res Qua Res Tes Sec Acc Matter Collected 5016 | 252 227 80 140 71 154 283 267 231 855 460 899 874 223 Remotely 10 | . . . . . . . . . . . 10 . . Salvage Created 39049 | . 1109 1523 1349 760 1705 3298 5370 1634 2042 3027 6837 8127 2268 Parts 1718 | . 67 93 123 37 84 130 205 76 103 117 247 289 147 Haulers Intercepted 31 | . 2 6 5 4 3 2 4 . . . 2 3 . Recyclers Shooed 9 | . 4 . 1 . . . 2 . . 1 1 . . Parts Field Recycled . | . . . . . . . . . . . . . . Retrieved Matter . | . . . . . . . . . . . . . . Parts Self-Destructed . | . . . . . . . . . . . . . . Prevented . | . . . . . . . . . . . . . . Parts Restored . | . . . . . . . . . . . . . . Kills | -11 -10 -9 -8 -7 -6 -5 -4 -3 -3 -2 -2 -2 -1 ------- Run | Yrd Mat Mat Mat Fac Fac Fac Fac Res Qua Res Tes Sec Acc Combat Hostiles Destroyed 543 | . 18 35 33 10 25 41 66 24 25 41 89 103 33 Guns 35 | . 2 . 9 4 . . . . . . . 1 19 Cannons 438 | . 14 34 24 6 20 32 51 24 18 38 78 86 13 AOE 18 | . . . . . . 8 5 . . . 4 . 1 Classes Destroyed 29 | . 8 1 3 1 1 2 1 . 3 3 3 3 . Worker 29 | . 2 2 . 3 . 2 5 1 1 1 7 2 3 Builder 27 | . 5 1 2 2 1 2 1 . 1 3 5 3 1 Tunneler 4 | . . . 1 . . . . . . 1 . . 2 Hauler 31 | . 2 6 5 4 3 2 4 . . . 2 3 . Recycler 26 | . 4 1 3 1 . 1 3 . . 2 5 2 4 Carrier 1 | . . . . . . . . . . . . 1 . Mechanic 2 | . . . . . . . . . . . 2 . . Operator 8 | . 2 1 2 1 . 1 1 . . . . . . Drone 20 | . . . . . . . . . 4 4 12 . . Turret 57 | . . . . . . 37 20 . . . . . . Watcher 69 | . 3 5 5 3 7 8 11 6 2 3 3 6 7 Swarmer 86 | . 9 18 10 . . 13 5 14 3 4 2 . 8 Cutter 5 | . . . . . . . . . . 2 . . 3 Saboteur 6 | . . . . . . . . . . . . 6 . Grunt 169 | . 9 7 12 6 14 10 29 1 . 15 30 25 11 Brawler 17 | . . . . . 1 1 2 . . 1 5 7 . Duelist 16 | . . . . . . . 1 . . . 7 8 . Protector 4 | . . . . . . 1 . . . . 2 1 . Researcher 17 | . . . . . . . . . 7 . 4 6 . Sentry 58 | . . 10 9 3 4 6 10 4 . 3 3 4 2 Hunter 43 | . . . 1 . 1 2 6 . 2 5 13 13 . Programmer 57 | . . . . 1 5 8 10 4 1 5 7 10 6 Heavy 4 | . . . 1 . . . 2 . . 1 . . . Q-Series 4 | . . . . . . . . . 1 . 3 . . Behemoth 1 | . . . . . . . . . . 1 . . . Cetus Guard 1 | . . . . . . . . . 1 . . . . Quarantine Guard 9 | . . . . . . . . . 9 . . . . S7 Guard 1 | . . . . . . . . . . . . 1 . Lightning 3 | . . . . . . . . . 3 . . . . CL-0N3 Special 1 | . . . . . . . . . 1 . . . . Tracker 12 | . . . . . . . . . . . . 10 2 Combat Programmer 11 | . . . . . . . . . . . 1 9 1 Investigator 1 | . . . . . . . . . . . . 1 . Striker 5 | . . . . . . . . . . . 2 3 . Executioner 4 | . . . . . . . . . . . . 4 . Alpha 7 3 | . . . . . . . . . . . 1 2 . Protovariant G 1 | . . . . . . . . . . . 1 . . Assembled 1 | . . . . . . . . . . 1 . . . Best Kill Streak 39 | . 6 9 9 3 7 26 18 5 9 11 15 39 11 Combat Bots Only 37 | . 5 7 6 2 5 6 13 5 5 11 13 37 8 Max Kills in Single Turn 5 | . 2 2 2 1 1 5 3 2 2 2 3 3 3 Gunslinging . | . . . . . . . . . . . . . . Exploded 4 | . . . . . . 4 2 . . . 2 . 1 Melee . | . . . . . . . . . . . . . . Uniques/NPCs Destroyed 2 | . . . . . . . 1 1 . . . . . GL-D0S (-4/Factory) 6S-H0T (-3/Research) Combat | -11 -10 -9 -8 -7 -6 -5 -4 -3 -3 -2 -2 -2 -1 -------- Run | Yrd Mat Mat Mat Fac Fac Fac Fac Res Qua Res Tes Sec Acc Hostile Shots Fired 2316 | . 74 111 116 101 137 107 219 64 97 130 233 750 177 Missed 1179 | . 31 43 47 56 67 46 106 25 32 57 97 433 139 Hits 1137 | . 43 68 69 45 70 61 113 39 65 73 136 317 38 Melee 9 | . . . . . . . . . . 2 . 5 2 Projectile 1128 | . 43 68 69 45 70 61 113 39 65 71 136 312 36 AOE 18 | . . . . . . . . . 10 5 . 1 2 Critical Strikes 49 | . 1 1 6 . 2 3 4 2 3 4 6 14 3 Actively Blocked 2 | . . . . . . . . 2 . . . . . Part Disruptions 5 | . . . . . . . 1 1 . 1 . 2 . Damage Taken 19376 | . 508 709 820 346 755 1034 2285 720 1561 1635 3027 5137 839 Core 15673 | . 420 583 654 276 618 831 1842 587 1280 1329 2442 4138 673 Absorbed by Shields 1184 | . . . . . . . . . 352 320 41 471 . Redirected to Core 12861 | . 282 402 534 242 462 714 1564 462 1015 1094 2013 3492 585 Ignored by Resistances 4040 | . . 106 186 78 128 188 562 130 255 298 589 1299 221 Regen/Repaired (Parts) 454 | . . . . . . 3 . . 141 . 306 4 . Core Remaining (%) 86 | 100 89 92 93 100 100 94 90 . 30 . . 66 95 Volleys Fired 2146 | . 196 205 160 181 108 159 258 128 94 90 265 236 66 Largest 3 | . 2 2 2 2 2 3 3 3 3 3 3 3 3 Hottest 335 | . 120 120 136 141 60 315 315 315 335 315 315 315 320 Shots Fired 4513 | . 293 410 320 264 210 340 652 245 193 221 557 612 196 Gun 373 | . 77 . 117 34 . . . . . . . 15 130 Cannon 4139 | . 216 410 203 230 210 340 651 245 193 221 557 597 66 Launcher . | . . . . . . . . . . . . . . Special 1 | . . . . . . . 1 . . . . . . Kinetic . | . . . . . . . . . . . . . . Thermal 4365 | . 293 410 320 264 210 340 651 245 193 221 557 595 66 Explosive . | . . . . . . . . . . . . . . Electromagnetic . | . . . . . . . . . . . . . . Slashing 147 | . . . . . . . . . . . . 17 130 Robot Hit Streak 54 | . 14 31 23 24 23 34 39 36 17 42 44 54 32 Robot Miss Streak 6 | . 5 4 3 4 2 6 2 2 2 2 3 5 3 Penetration Max 1 | . . . . . . . . . . . . 1 1 Secondary Targets 1 | . . . . . . . . . . . . 1 . Max Gunslinging Chain 1 | . . . . . . . . . . . . 1 . Capacitor 3 | . . . . . . . . . . . 3 . . Shots Hit Robots 2308 | . 103 122 156 69 144 167 342 101 113 146 341 387 117 Core Hits 1014 | . 37 54 67 27 48 85 147 36 53 66 165 159 70 Critical Kills 34 | . . . . . 5 1 4 . 3 1 6 14 . Critical Parts Destroyed 3 | . 1 . . . . . . . 2 . . . . Critical Strikes 46 | . 4 . 2 1 5 1 4 . 5 1 6 15 2 Burn 6 | . 3 . 2 1 . . . . . . . . . Meltdown 34 | . . . . . 5 1 4 . 3 1 6 14 . Destroy 2 | . . . . . . . . . 2 . . . . Smash 1 | . 1 . . . . . . . . . . . . Sever 3 | . . . . . . . . . . . . 1 2 Melee Attacks 25 | . 25 . . . . . . . . . . . . Impact 25 | . 25 . . . . . . . . . . . . Slashing . | . . . . . . . . . . . . . . Piercing . | . . . . . . . . . . . . . . Sneak Attacks 1 | . 1 . . . . . . . . . . . . Combat Hostiles . | . . . . . . . . . . . . . . Follow-up Attacks . | . . . . . . . . . . . . . . Damage Inflicted 131770 | . 1877 2772 4085 3343 5628 11345 19167 5225 6964 7488 25343 29947 8586 Guns 8753 | . 413 . 1143 594 . . . . . . . 921 5682 Cannons 115746 | . 1010 2579 2692 1694 5628 9136 16970 5225 6964 7488 24824 28834 2702 Explosions 6981 | . 164 193 250 1055 . 2209 2197 . . . 519 192 202 Melee 278 | . 278 . . . . . . . . . . . . Ramming 12 | . 12 . . . . . . . . . . . . Kinetic . | . . . . . . . . . . . . . . Thermal 121556 | . 1423 2579 4085 3165 5628 11095 17807 5225 6964 7488 24824 28571 2702 Explosive 2912 | . 164 193 . 178 . 250 1360 . . . 439 192 136 Electromagnetic 146 | . . . . . . . . . . . 80 . 66 Impact 278 | . 278 . . . . . . . . . . . . Slashing 6866 | . . . . . . . . . . . . 1184 5682 Piercing . | . . . . . . . . . . . . . . Highest Corruption 23 | . 1 . . . 1 1 4 4 4 4 14 23 1 Average Corruption 5 | . 1 . . . 1 1 1 3 2 2 10 15 1 Corruption Purged 7 | . . . . . . . 3 . . . 4 . . Corruption Blocked . | . . . . . . . . . . . . . . Effects 279 | . 5 . . . 2 8 18 43 19 2 76 101 5 Message Errors 59 | . 1 . . . 1 1 5 9 8 . 13 20 1 Matter Fused 57 | . 2 . . . 1 . 4 12 2 1 17 16 2 Heat Flow Errors 31 | . . . . . . 2 2 3 2 . 10 12 . Energy Discharges 25 | . . . . . . . 2 4 1 1 8 7 2 Parts Rejected 3 | . . . . . . . . . . . . 3 . Parts Fused 5 | . 1 . . . . 1 . . . . 1 2 . Data Loss (minor) 37 | . 1 . . . . 2 2 8 4 . 11 9 . Data Loss (major) 15 | . . . . . . 1 1 2 . . 3 8 . Misfires 17 | . . . . . . 1 1 4 1 . 7 3 . Alerts 3 | . . . . . . . . 1 . . 2 . . Misdirections 6 | . . . . . . . . . . . 1 5 . Weapon Failures 21 | . . . . . . . 1 . 1 . 3 16 . Overload Shots 440 | . . . . 1 . 67 49 19 69 32 98 105 . Effects 34 | . . . . . . 6 1 . 5 5 8 9 . Energy Bleed 18 | . . . . . . 3 . . 4 4 4 3 . Heat Surge 9 | . . . . . . 1 . . 1 1 2 4 . Short Circuit 7 | . . . . . . 2 1 . . . 2 2 . Overflow Damage 7089 | . 99 16 138 377 252 1154 766 311 186 515 1090 1835 350 Projectiles 6064 | . 44 16 27 40 252 779 645 311 186 515 1090 1809 350 Explosions 1001 | . 31 . 111 337 . 375 121 . . . . 26 . Melee 24 | . 24 . . . . . . . . . . . . Knockbacks 1 | . 1 . . . . . . . . . . . . Impact 1 | . 1 . . . . . . . . . . . . Kinetic . | . . . . . . . . . . . . . . Secondary . | . . . . . . . . . . . . . . Self-Inflicted Damage 708 | . 49 57 . . . . 95 . . . 467 . 40 Shots 10 | . 1 1 . . . . 2 . . . 5 . 1 Rammed 1 | . 1 . . . . . . . . . . . . Targets Rammed 1 | . 1 . . . . . . . . . . . . Kicked . | . . . . . . . . . . . . . . Crushed . | . . . . . . . . . . . . . . Highest Temperature 594 | . 304 112 67 87 14 353 429 281 594 340 467 335 263 Average Temperature 70 | . 68 17 15 25 6 93 100 106 138 107 104 82 71 Received Heat Transfer 2531 | . 147 138 513 171 270 217 388 27 27 42 186 369 36 Effects 27 | . . . . . . 1 2 . 11 3 8 2 . Shutdowns 4 | . . . . . . . 1 . 1 . 1 1 . Energy Bleed 3 | . . . . . . . . . 1 1 . 1 . Interference 11 | . . . . . . . 1 . 4 2 4 . . Matter Decay 2 | . . . . . . 1 . . 1 . . . . Short Circuit 2 | . . . . . . . . . 1 . 1 . . Damage (minor) 5 | . . . . . . . . . 3 . 2 . . Siege Activations . | . . . . . . . . . . . . . . Martial Activations . | . . . . . . . . . . . . . . Shielding Activations . | . . . . . . . . . . . . . . Robots Disrupted . | . . . . . . . . . . . . . . Combat Hostiles . | . . . . . . . . . . . . . . Robots Corrupted 1 | . 1 . . . . . . . . . . . . Combat Hostiles 1 | . 1 . . . . . . . . . . . . Parts Fried . | . . . . . . . . . . . . . . Impact Corruptions 2 | . 2 . . . . . . . . . . . . Robots Melted 61 | . 1 1 . . 6 1 12 . 8 3 9 20 . Combat Hostiles 51 | . 1 1 . . 5 1 10 . 7 3 7 16 . Parts Melted 328 | . 4 10 8 5 18 22 72 20 14 28 63 60 4 Heat Transferred 112692 | . 3493 4884 6218 3220 5513 9726 18192 4874 7404 8320 19455 20098 1295 Parts Sabotaged . | . . . . . . . . . . . . . . Parts Stolen . | . . . . . . . . . . . . . . Parts Stripped . | . . . . . . . . . . . . . . Power Chain Reactions 2 | . 1 . . . . . . . . . 1 . . Alert | -11 -10 -9 -8 -7 -6 -5 -4 -3 -3 -2 -2 -2 -1 ------- Run | Yrd Mat Mat Mat Fac Fac Fac Fac Res Qua Res Tes Sec Acc Maximum Alert Level 5 | . 2 3 3 5 4 4 5 5 4 3 5 5 5 Low Security (%) 7 | 100 51 . . 36 . . . . . 11 . . . Level 1 6 | . 35 19 10 21 . 3 . . 4 10 . . . Level 2 18 | . 12 37 48 5 21 21 24 . 25 57 16 5 . Level 3 26 | . . 42 41 11 19 42 31 . 51 21 44 32 . Level 4 15 | . . . . 8 58 32 18 . 18 . 29 18 . Level 5 19 | . . . . 15 . . 12 100 . . 1 14 100 High Security 2 | . . . . 2 . . 13 . . . 8 . . Max Security 2 | . . . . . . . . . . . . 29 . Sterilizations 1 | . . . . . . . . . . . . 1 . Peak Influence 5222 | . 510 1077 1003 2684 1314 1563 4120 2262 1235 841 2073 5222 4260 Initial 3132 | . . 215 453 453 1314 626 764 2163 1212 645 469 1165 3132 Average 1187 | . 178 632 652 714 1009 979 1349 1894 875 522 1053 1881 3720 Influence Increases 32749 | . 1324 2086 2040 3377 1105 2792 4762 1122 1304 2312 3291 5507 1727 Destroy 0b10 Robot/C 11840 | . 360 700 660 200 500 860 1300 460 600 1080 1780 2680 660 Destroy 0b10 Robot/NC 1015 | . 90 80 90 65 55 85 120 35 20 50 130 110 85 Destroy Leader 2546 | . 70 192 190 54 130 210 318 112 144 206 230 536 154 Allied During Kill 1088 | . . . . . . 7 . . . 676 . 405 . Successful Hack 808 | . 20 13 12 112 66 134 151 86 68 . 62 24 60 Disable Machine 7785 | . 555 765 780 2175 150 780 1410 30 255 30 480 225 150 Anti-Garrison Action 300 | . . . . . 150 . 150 . . . . . . Destroy Structure 4727 | . 199 201 263 726 39 656 1058 234 82 135 504 417 213 Partial Spotted 405 | . . . . 45 15 30 105 30 30 30 30 30 60 Lose Combat Pursuer 2235 | . 30 135 45 . . 30 150 135 105 105 75 1080 345 Influence Decreases 28534 | . 814 1523 2116 1690 2510 2511 2202 3085 2313 2625 2053 2358 2734 Entered New Map 11047 | . . 295 620 544 1370 653 796 1957 945 503 366 908 2090 Time Decay 6455 | . 402 478 446 526 530 598 626 638 428 362 577 510 334 Lost Part 110 | . . . . . . . . . 40 20 50 . . Lost Ally 1060 | . . . . 20 10 60 30 40 . 840 10 40 10 Purge Threat 9862 | . 412 750 1050 600 600 1200 750 450 900 900 1050 900 300 Squads Dispatched 202 | . 2 2 3 5 14 16 30 25 6 14 27 46 12 Investigation 27 | . 1 1 . . 2 4 5 4 1 5 3 . 1 Extermination 41 | . . . . 3 4 6 5 5 1 4 6 4 3 Reinforcement 41 | . 1 1 3 2 4 2 5 1 4 4 6 6 2 Assault 87 | . . . . . 4 4 15 15 . 1 11 32 5 Garrison 1 | . . . . . . . . . . . 1 . . Intercept 5 | . . . . . . . . . . . . 4 1 Searches Triggered . | . . . . . . . . . . . . . . Unchained Authorized 8 | . . . . . . 1 2 2 1 . 1 . 1 Construction Impeded 9 | . . . . 1 1 1 2 . . 2 2 . . Haulers Reinforced 6 | . . . . 1 3 . . . . . . 1 1 Active Scanning Responses . | . . . . . . . . . . . . . . Cargo Convoy Interrupts . | . . . . . . . . . . . . . . Stealth | -11 -10 -9 -8 -7 -6 -5 -4 -3 -3 -2 -2 -2 -1 --------- Run | Yrd Mat Mat Mat Fac Fac Fac Fac Res Qua Res Tes Sec Acc Distress Signals 29 | . 2 3 2 1 1 5 3 2 . 3 1 5 1 Communications Jammed . | . . . . . . . . . . . . . . Distress Signals . | . . . . . . . . . . . . . . Times Spotted 964 | . 30 41 43 22 32 81 111 35 44 70 109 280 66 Peak Tracking Total 57 | . 5 5 4 3 3 15 7 6 6 15 7 57 11 Tactical Retreats 69 | . 1 4 2 . . 16 14 3 4 6 3 9 7 ID Masks Used 1 | . . . . . . . 1 . . . . . . Traps | -11 -10 -9 -8 -7 -6 -5 -4 -3 -3 -2 -2 -2 -1 ------- Run | Yrd Mat Mat Mat Fac Fac Fac Fac Res Qua Res Tes Sec Acc Traps Triggered 13 | . 3 . . . 2 . 3 2 . 1 1 . 1 Indirectly . | . . . . . . . . . . . . . . Trap Hack Attempts . | . . . . . . . . . . . . . . Triggered . | . . . . . . . . . . . . . . Disarmed 6 | . . . . 6 . . . . . . . . . Reprogrammed . | . . . . . . . . . . . . . . Reused . | . . . . . . . . . . . . . . Traps Extracted . | . . . . . . . . . . . . . . Installed . | . . . . . . . . . . . . . . Triggered . | . . . . . . . . . . . . . . Machines | -11 -10 -9 -8 -7 -6 -5 -4 -3 -3 -2 -2 -2 -1 ---------- Run | Yrd Mat Mat Mat Fac Fac Fac Fac Res Qua Res Tes Sec Acc Machines Disabled 529 | . 38 51 52 145 11 52 95 3 17 2 35 18 10 Max in Single Turn 9 | . 4 3 3 6 2 8 9 1 2 1 3 1 2 Garrison Access 21 | . . . 1 3 3 1 4 3 . . 1 1 4 Machines Repaired . | . . . . . . . . . . . . . . Machines Dismantled . | . . . . . . . . . . . . . . Machines Sabotaged . | . . . . . . . . . . . . . . Overloaded Fab Kills . | . . . . . . . . . . . . . . Hacking | -11 -10 -9 -8 -7 -6 -5 -4 -3 -3 -2 -2 -2 -1 --------- Run | Yrd Mat Mat Mat Fac Fac Fac Fac Res Qua Res Tes Sec Acc Machines Accessed 202 | . 8 11 11 20 11 21 22 26 19 14 14 15 10 Terminals 154 | . 8 10 9 16 9 16 18 17 17 8 9 12 5 Fabricators 11 | . . . . . . 3 . 3 . 3 1 . 1 Repair Stations 6 | . . . . . . 1 1 . 1 . 2 1 . Recycling Units 2 | . . . . . . . . . . 2 . . . Scanalyzers 10 | . . 1 1 1 . . . 3 1 1 1 1 . Garrison Access 19 | . . . 1 3 2 1 3 3 . . 1 1 4 Total Hacks 991 | . 29 51 58 87 42 87 101 116 123 96 101 75 25 Successful 573 | . 16 25 29 50 20 51 44 80 89 52 57 45 15 Failed 412 | . 13 26 28 37 22 36 57 35 30 44 44 30 10 Catastrophic 84 | . 1 7 9 4 4 8 17 6 . 8 13 6 1 Database Lockouts 6 | . . . 1 . . . . 1 4 . . . . Manual 367 | . 13 32 36 33 22 33 55 28 11 29 29 35 11 Terminals 867 | . 29 47 53 82 39 77 92 91 113 78 81 69 16 Fabricators 28 | . . . . . . 7 . 8 . 7 2 . 4 Repair Stations 23 | . . . . . . 2 3 . 7 . 9 2 . Recycling Units 7 | . . . . . . . . . . 7 . . . Scanalyzers 32 | . . 4 2 1 . . . 13 3 4 3 2 . Garrison Access 34 | . . . 3 4 3 1 6 4 . . 6 2 5 Terminal Hacks 382 | . 12 14 22 33 10 32 23 45 80 37 39 31 4 Record 82 | . . 2 . . . 2 . 11 48 14 3 2 . Part Schematic 5 | . . . 1 . . 1 . 1 1 1 . . . Robot Analysis 14 | . 1 . 1 1 1 1 . 2 2 3 2 . . Prototype ID Bank 24 | . 2 . 2 1 . 2 2 1 5 3 3 3 . Open Door 5 | . . . . . . . 1 . 2 . . 1 1 Open DSF 1 | . . . . . . . . 1 . . . . . Level Access Points 4 | . . . . 1 . . . . 1 1 1 . . Branch Access Points 6 | . . . . 1 . . . 1 1 1 1 1 . Emergency Access Points 1 | . 1 . . . . . . . . . . . . Machine Index 4 | . . . . 1 . 1 1 . 1 . . . . Terminal Index 10 | . . . 2 1 . 1 1 1 . 1 1 2 . Fabricator Index 3 | . . . . . 1 . . 1 . . . 1 . Repair Station Index 2 | . . . . . . . . . . . 1 1 . Scanalyzer Index 3 | . . . . 1 . . . 1 1 . . . . Garrison Index 1 | . . . . 1 . . . . . . . . . Alert Level 29 | . 2 3 5 5 2 3 . 2 3 2 1 1 . Unreport Threat 66 | . 3 5 7 4 4 8 5 3 6 6 7 6 2 Locate Traps 31 | . 2 3 3 9 1 1 5 2 . 2 2 . 1 Disarm Traps 1 | . . . . 1 . . . . . . . . . Dispatch Records 1 | . . . . . 1 . . . . . . . . Security Status 1 | . . . . . . . . . . . . 1 . Surveillance Status 2 | . . . . . . . . . 1 . 1 . . Transport Status 2 | . 1 . . 1 . . . . . . . . . Investigation Status 4 | . . . . . . . . 1 1 . . 2 . Extermination Status 4 | . . . . . . 1 . 1 1 . 1 . . Reinforcement Status 6 | . . . . . . 1 . 1 1 . 1 2 . Assault Status 4 | . . . . . . . . 1 . 1 1 1 . Recall Investigation 7 | . . . . . . 1 2 2 1 . 1 . . Recall Extermination 8 | . . . . . . 2 . 4 . . 2 . . Recall Reinforcements 6 | . . . . . . 2 1 2 . . 1 . . Recall Assault 8 | . . . . . . . 2 4 . . 2 . . Registered Components 12 | . . . . 1 . 3 2 1 1 1 1 2 . Registered Prototypes 7 | . . . . 1 . 2 . 1 1 . 1 1 . Zone Layout 14 | . . 1 1 3 . . 1 . 2 1 2 3 . Protovariant Controls 3 | . . . . . . . . . . . 3 . . Activate Exoskeleton 1 | . . . . . . . . . . . . 1 . Fabricator Hacks 22 | . . . . . . 6 . 6 . 6 2 . 2 Load Schematic 11 | . . . . . . 3 . 3 . 3 1 . 1 Build 11 | . . . . . . 3 . 3 . 3 1 . 1 Repair Station Hacks 19 | . . . . . . 2 2 . 4 . 9 2 . Scan Component 9 | . . . . . . 1 1 . 2 . 4 1 . Repair 9 | . . . . . . 1 1 . 2 . 4 1 . Refit 1 | . . . . . . . . . . . 1 . . Recycling Unit Hacks 2 | . . . . . . . . . . 2 . . . Retrieve Components 2 | . . . . . . . . . . 2 . . . Scanalyzer 23 | . . 3 . 1 . . . 12 1 2 2 2 . Insert Component 10 | . . . . . . . . 6 1 1 1 1 . Analyze 9 | . . . . . . . . 6 . 1 1 1 . Retrieve Study 4 | . . 3 . 1 . . . . . . . . . Garrison Access Hacks 19 | . . . 1 3 2 1 3 3 . . 1 1 4 Seal Access 19 | . . . 1 3 2 1 3 3 . . 1 1 4 Unauthorized Hacks 106 | . 4 8 6 13 8 10 16 14 4 5 4 9 5 Terminals 105 | . 4 8 6 13 8 10 16 14 4 4 4 9 5 Assimilate 25 | . . . 1 3 3 1 5 5 . 1 1 3 2 Botnet 76 | . 4 8 4 9 5 8 11 8 4 3 3 6 3 Operators 4 | . . . 1 1 . 1 . 1 . . . . . Fabricators . | . . . . . . . . . . . . . . Repair Stations . | . . . . . . . . . . . . . . Recycling Units 1 | . . . . . . . . . . 1 . . . Monitor 1 | . . . . . . . . . . 1 . . . Scanalyzers . | . . . . . . . . . . . . . . Garrison Access . | . . . . . . . . . . . . . . Data Cores Recovered 1 | . 1 . . . . . . . . . . . . Used 1 | . 1 . . . . . . . . . . . . Hacking Detections 165 | . 8 11 9 17 10 19 17 22 14 13 11 9 5 Full Trace Events 27 | . 2 2 . . 2 4 5 4 1 4 2 . 1 Feedback Events 1 | . . . . . . . . 1 . . . . . Corruption 1 | . . . . . . . . 1 . . . . . Feedback Blocked . | . . . . . . . . . . . . . . Robot Schematics Acquired 9 | . . . . . . . . . 4 . 2 3 . Robots Built . | . . . . . . . . . . . . . . Authchips . | . . . . . . . . . . . . . . Time . | . . . . . . . . . . . . . . Total Robot Build Rating . | . . . . . . . . . . . . . . Part Schematics Acquired 50 | . . . 1 . . 1 . 5 19 2 9 13 . Parts Built 10 | . . . . . . 3 . 3 . 3 . . 1 Authchips . | . . . . . . . . . . . . . . Time 1065 | . . . . . . 380 . 217 . 231 187 . 50 Total Part Build Rating 60 | . . . . . . 15 . 21 . 19 . . 5 Part Studies Acquired 4 | . . 3 . 1 . . . . . . . . . Parts Repaired 8 | . . . . . . 1 1 . 2 . 3 1 . Time 502 | . . . . . . 50 100 . 55 . 185 112 . Parts Recycled . | . . . . . . . . . . . . . . Recycled Matter . | . . . . . . . . . . . . . . Retrieved Matter . | . . . . . . . . . . . . . . Retrieved Components . | . . . . . . . . . . . . . . Parts Scanalyzed 9 | . . . . . . . . 5 1 1 1 1 . Part Schematics Acquired 7 | . . . . . . . . 4 . 1 1 1 . Parts Damaged 2 | . . . . . . . . 1 1 . . . . Bothacking | -11 -10 -9 -8 -7 -6 -5 -4 -3 -3 -2 -2 -2 -1 ------------ Run | Yrd Mat Mat Mat Fac Fac Fac Fac Res Qua Res Tes Sec Acc Used RIF Installer . | . . . . . . . . . . . . . . Robots Hacked 1 | . . . . . . . 1 . . . . . . Non-combat 1 | . . . . . . . 1 . . . . . . Combat . | . . . . . . . . . . . . . . Robot Hacks Applied 1 | . . . . . . . 1 . . . . . . parse_system 1 | . . . . . . . 1 . . . . . . Relay Couplers Released 5 | . . . . . 3 . 2 . . . . . . Machine Destruction 3 | . . . . . 1 . 2 . . . . . . Programmers 2 | . . . . . 2 . . . . . . . . Fabnet Peak Effective % . | . . . . . . . . . . . . . . Robots Rewired . | . . . . . . . . . . . . . . Allies Hacked 3 | . . . . . 1 . 1 . . . . 1 . Hacks Repelled . | . . . . . . . . . . . . . . Allies | -11 -10 -9 -8 -7 -6 -5 -4 -3 -3 -2 -2 -2 -1 -------- Run | Yrd Mat Mat Mat Fac Fac Fac Fac Res Qua Res Tes Sec Acc Total Allies 85 | . . . . 3 3 13 4 4 . 53 1 3 1 Largest Group 22 | . . . . 2 2 8 2 1 . 22 1 2 1 Highest-Rated Group 1204 | . . . . 36 52 174 71 45 . 316 26 1204 45 Highest-Rated Ally 1204 | . . . . 26 26 31 45 45 . 26 26 1204 45 Total Orders 2 | . . . . 2 . . . . . . . . . STAY 1 | . . . . 1 . . . . . . . . . FOLLOW 1 | . . . . 1 . . . . . . . . . Ally Attacks 340 | . . . . . . 19 . . . 224 . 97 . Total Damage 16038 | . . . . . . 418 . . . 4044 . 11576 . Kills 48 | . . . . . . 3 . . . 16 . 29 . Allies Corrupted 3 | . . . . . . . . . . 3 . . . Allies Melted . | . . . . . . . . . . . . . . Intel | -11 -10 -9 -8 -7 -6 -5 -4 -3 -3 -2 -2 -2 -1 ------- Run | Yrd Mat Mat Mat Fac Fac Fac Fac Res Qua Res Tes Sec Acc Active Infowar (turns) 19264 | . 1029 1237 1106 1527 1481 1903 2479 2261 925 718 1882 1963 753 Optics 7 | . . . . . . . . . 1 . . 6 . Sensors 7617 | . . 1180 1106 1527 1478 1435 887 . 2 . 2 . . IFF 1 | . . . . . . . . . . 1 . . . Zeronet 1916 | . . . . . . . . 1874 42 . . . . Terrain 4 | . . . . . . . . . 3 . 1 . . Structural 19188 | . 1029 1237 1106 1527 1481 1903 2479 2261 925 644 1880 1963 753 Seismic 2 | . . . . . . . . . . . 2 . . T.N.C. 1 | . . . . . . . . . . . 1 . . Machine Analysis 7 | . . . . . . . . . . . 5 2 . Cloaking 216 | . . . . . . . . 1 . 215 . . . ECM 3 | . . . . . . . . . . . . . 3 ID Mask 3 | . . . . . . . 3 . . . . . . Robot Analysis Total 14 | . 1 . 1 1 1 1 . 2 2 3 2 . . Derelict Logs Recovered . | . . . . . . . . . . . . . . Drone Launches . | . . . . . . . . . . . . . . Drone Recoveries . | . . . . . . . . . . . . . . Exploration | -11 -10 -9 -8 -7 -6 -5 -4 -3 -3 -2 -2 -2 -1 ------------- Run | Yrd Mat Mat Mat Fac Fac Fac Fac Res Qua Res Tes Sec Acc Turns Passed 19983 | 48 1406 1237 1106 1527 1481 1903 2487 2261 1059 826 1926 1963 753 Spaces Moved 36214 | 40 1554 1916 1906 3052 2915 3952 4998 4217 2313 1575 3086 2841 1849 Core 69 | 6 . . . . . . . . . . . 63 . Treads . | . . . . . . . . . . . . . . Legs 3 | 3 . . . . . . . . . . . . . Wheels 341 | 31 310 . . . . . . . . . . . . Hover . | . . . . . . . . . . . . . . Flight 35801 | . 1244 1916 1906 3052 2915 3952 4998 4217 2313 1575 3086 2778 1849 Fastest Speed 18 | 50 29 26 26 26 26 23 23 20 20 18 18 21 21 Average Speed 24 | 94 45 26 26 26 26 24 23 21 20 19 22 25 21 Slowest Speed 200 | 120 100 29 29 106 26 109 23 23 107 21 102 200 24 Overloaded Moves . | . . . . . . . . . . . . . . Propulsion Burnouts . | . . . . . . . . . . . . . . Robots Hopped 181 | . 9 12 7 13 16 25 20 13 3 7 21 34 1 Potential Cave-ins 11 | . . . . . . . 5 3 . . . 3 . Cave-ins Triggered . | . . . . . . . . . . . . . . Teleports 2 | . . . . . . . . . 2 . . . . Exploration Rate (%) 76 | 4 100 99 99 78 65 72 86 84 97 38 99 96 52 Regions Visited 13 Branch Regions 3 Pre-discovered Areas . | . . . . . . . . . . . . . . Known Exits Taken 12 | . 1 1 1 1 1 1 1 1 1 1 1 1 . Unknown Exits Taken 1 | 1 . . . . . . . . . . . . . Scrap Searched . | . . . . . . . . . . . . . . Spaces Dug 369 | . 2 . 4 28 18 41 69 91 16 15 18 41 26 Terrain Destroyed 3135 | . 204 207 297 828 50 370 592 120 40 44 169 126 88 Melee 2 | . 2 . . . . . . . . . . . . Projectile 875 | . . . 47 67 38 96 148 120 40 44 87 100 88 AOE 2258 | . 202 207 250 761 12 274 444 . . . 82 26 . Terrain Rammed . | . . . . . . . . . . . . . . Walls Destroyed . | . . . . . . . . . . . . . . Machines Disabled . | . . . . . . . . . . . . . . Actions | -11 -10 -9 -8 -7 -6 -5 -4 -3 -3 -2 -2 -2 -1 --------- Run | Yrd Mat Mat Mat Fac Fac Fac Fac Res Qua Res Tes Sec Acc Total 43781 | 46 1903 2231 2188 3516 3459 4616 5924 5397 2728 1946 4028 3709 2090 Wait 3829 | . 88 68 41 260 381 449 514 990 165 124 360 335 54 Move 35862 | 39 1535 1892 1893 3025 2882 3904 4957 4191 2307 1561 3044 2786 1846 Hop 157 | . 9 11 5 13 16 22 20 12 2 6 20 20 1 Pick Up 93 | . 3 4 12 2 3 1 16 4 5 4 18 13 8 Fast Attach 309 | 5 11 2 3 3 7 13 15 14 59 44 69 45 19 Attach 29 | . 1 1 1 1 1 . 2 1 10 1 3 5 2 Detach 26 | . 1 . . . 1 . . 3 6 4 2 8 1 Swap 81 | 2 8 5 10 7 5 7 6 6 3 2 4 13 3 Drop 343 | . 7 5 14 4 11 13 27 15 54 47 77 49 20 Fire 2146 | . 196 205 160 181 108 159 258 128 94 90 265 236 66 Melee 25 | . 25 . . . . . . . . . . . . Ram 1 | . 1 . . . . . . . . . . . . Kick . | . . . . . . . . . . . . . . Crush . | . . . . . . . . . . . . . . Escape Stasis 39 | . . . . . . . . . . 6 . 33 . Rewire . | . . . . . . . . . . . . . . Trap . | . . . . . . . . . . . . . . Miscellaneous 841 | . 18 38 49 20 44 48 109 33 23 57 166 166 70 Route ------- -11/Scrapyard -10/Materials (discovered 6 exits: *Mat x3 / *Min x2 / *Sub) -9/Materials (discovered 5 exits: *Mat x3 / *Min x2) -8/Materials (discovered 5 exits: *Fac x3 / *Sto x2) -7/Factory (discovered 6 exits: *Fac x4 / *Low x2) -6/Factory (discovered 3 exits: *Fac x2 / [*Low]) -5/Factory (discovered 3 exits: *Fac x2 / *Upp) -4/Factory (discovered 8 exits: *Res x4 / *Upp x2 / *Ext x2) -3/Research (discovered 3 exits: *Res / *Qua x2) -3/Quarantine -2/Research (discovered 5 exits: Acc x3 / *Tes x2) -2/Testing (discovered 3 exits: *Acc / *Sec / *Frg) -2/Section 7 -1/Access To Fleet Rendezvous History --------- Turn | Location | Event 1 | -11/Scrapyard | Upgraded with Propulsion slot (x1) 1 | -11/Scrapyard | Upgraded with Utility slot (x1) 1 | -11/Scrapyard | Upgraded with Weapon slot (x1) 5 | -11/Scrapyard | Discovered new exit (range 15) 49 | -11/Scrapyard | Entered Materials 201 | -10/Materials | Discovered new exit (range 16) 278 | -10/Materials | Discovered new exit (range 9) 304 | -10/Materials | Build established: Mutant 526 | -10/Materials | Discovered new exit (range 7) 542 | -10/Materials | Identified exit to Mines 629 | -10/Materials | Reached level 2 636 | -10/Materials | Upgraded with Utility slot (x1) 717 | -10/Materials | Discovered new exit (range 10) 723 | -10/Materials | Discovered new exit (range 15) 957 | -10/Materials | Build established: Sprinter 990 | -10/Materials | Identified exit to Subcaves 1007 | -10/Materials | Reached level 3 1025 | -10/Materials | Upgraded with Propulsion slot (x1) 1082 | -10/Materials | Discovered new exit (range 10) 1084 | -10/Materials | Identified exit to Materials 1381 | -10/Materials | Reached level 4 1455 | -10/Materials | Entered another Materials area 1456 | -9/Materials | Upgraded with Propulsion slot (x1) 1457 | -9/Materials | Reached level 5 1526 | -9/Materials | Destroyed 7 combat bots 1551 | -9/Materials | Reached level 6 1587 | -9/Materials | Discovered new exit (range 7) 1588 | -9/Materials | Identified exit to Mines 1635 | -9/Materials | Discovered new exit (range 5) 1641 | -9/Materials | Identified exit to Materials 1769 | -9/Materials | Reached level 7 1773 | -9/Materials | Discovered exit to Materials (range 9) 1977 | -9/Materials | Reached level 8 2071 | -9/Materials | Build established: Hacker-Scout 2154 | -9/Materials | Discovered exit to Materials (range 10) 2285 | -9/Materials | Reached level 9 2488 | -9/Materials | Discovered exit to Mines (range 16) 2692 | -9/Materials | Entered another Materials area 2694 | -8/Materials | Reached level 10 2764 | -8/Materials | Reached level 11 3069 | -8/Materials | Discovered new exit (range 14) 3088 | -8/Materials | Identified exit to Storage 3108 | -8/Materials | Reached level 12 3150 | -8/Materials | Discovered new exit (range 7) 3151 | -8/Materials | Identified exit to Factory 3230 | -8/Materials | Central database locked down 3328 | -8/Materials | Discovered exit to Factory (range 13) 3382 | -8/Materials | Discovered exit to Storage (range 15) 3415 | -8/Materials | Discovered exit to Factory (range 14) 3443 | -8/Materials | Reached level 13 3446 | -8/Materials | Upgraded with Utility slot (x1) 3798 | -8/Materials | Entered Factory 3800 | -7/Factory | Reached level 14 3881 | -7/Factory | Upgraded with Utility slot (x1) 4304 | -7/Factory | Identified exit to Factory 4304 | -7/Factory | Reached level 15 4704 | -7/Factory | Discovered new exit (range 5) 4705 | -7/Factory | Identified exit to Lower Caves 4725 | -7/Factory | Reached level 16 5036 | -7/Factory | Reached level 17 5039 | -7/Factory | Upgraded with Utility slot (x1) 5291 | -7/Factory | High security lockdown imminent 5325 | -7/Factory | Entered another Factory area 5327 | -6/Factory | Reached level 18 5587 | -6/Factory | Discovered new exit (range 14) 5590 | -6/Factory | Identified exit to Factory 6020 | -6/Factory | Discovered new exit (range 7) 6025 | -6/Factory | First assault squad dispatched 6028 | -6/Factory | Reached level 19 6205 | -6/Factory | Discovered exit to Factory (range 9) 6806 | -6/Factory | Entered another Factory area 6806 | -5/Factory | Accompanied by 2 allies 6808 | -5/Factory | Reached level 20 6808 | -5/Factory | Upgraded with Weapon slot (x1) 6857 | -5/Factory | Reached level 21 7010 | -5/Factory | Discovered new exit (range 11) 7206 | -5/Factory | Fabricated Cld. Plasma Cannon? 7221 | -5/Factory | Fabricated Cld. Plasma Cannon? 7406 | -5/Factory | First assault squad dispatched 7438 | -5/Factory | Reached level 22 7444 | -5/Factory | Unchained authorized (GL-D0S) 7455 | -5/Factory | Fabricated Cld. Plasma Cannon? 7522 | -5/Factory | Upgraded with Propulsion slot (x1) 7735 | -5/Factory | P-70 Sage assimilated allied Administrator 5c 7925 | -5/Factory | Discovered new exit (range 17) 7930 | -5/Factory | Identified exit to Upper Caves 8218 | -5/Factory | Repaired Broken Cld. Plasma Cannon 8220 | -5/Factory | Reached level 23 8330 | -5/Factory | Discovered new exit (range 14) 8347 | -5/Factory | Identified exit to Factory 8476 | -5/Factory | Found Prototype Energy Gun 8476 | -5/Factory | Identified Shockbolt Module 8709 | -5/Factory | Entered another Factory area 8714 | -4/Factory | Discovered new exit (range 6) 8761 | -4/Factory | Discovered new exit (range 12) 8763 | -4/Factory | Identified exit to Extension 8794 | -4/Factory | Found Prototype Device 8794 | -4/Factory | Identified Adv. EM Shield 8799 | -4/Factory | Reached level 24 8922 | -4/Factory | Unchained authorized (GL-D0S) 8955 | -4/Factory | Found Prototype Processor 8956 | -4/Factory | Identified Exp. Melee Analysis Suite 9102 | -4/Factory | Discovered new exit (range 14) 9105 | -4/Factory | Identified exit to Upper Caves 9522 | -4/Factory | Repaired Broken Cld. Plasma Cannon 9560 | -4/Factory | Identified exit to Research 9647 | -4/Factory | Reached level 25 9664 | -4/Factory | Discovered exit to Research (range 17) 9727 | -4/Factory | Discovered exit to Extension (range 6) 9959 | -4/Factory | First assault squad dispatched 10035 | -4/Factory | Discovered exit to Research (range 12) 10036 | -4/Factory | Discovered exit to Upper Caves (range 4) 10066 | -4/Factory | Destroyed GL-D0S 10072 | -4/Factory | Found Prototype Device 10072 | -4/Factory | Identified Exp. Sensor Array 10077 | -4/Factory | Found ID Mask 10101 | -4/Factory | Discovered exit to Research (range 12) 10280 | -4/Factory | Reached level 26 10283 | -4/Factory | Unchained authorized (6S-H0T) 10463 | -4/Factory | Upgraded with Utility slot (x1) 10632 | -4/Factory | Destroyed 13 combat bots 10778 | -4/Factory | Found Prototype Processor 10778 | -4/Factory | Identified Exp. Signal Interpreter 10827 | -4/Factory | ID Mask engaged 10858 | -4/Factory | High security lockdown imminent 10919 | -4/Factory | Reached level 27 10938 | -4/Factory | High security lockdown engaged 10949 | -4/Factory | Spotted B-86 Titan 11196 | -4/Factory | Entered Research 11198 | -3/Research | Reached level 28 11392 | -3/Research | Unchained authorized (6S-H0T) 11446 | -3/Research | First assault squad dispatched 11448 | -3/Research | Discovered new exit (range 16) 11568 | -3/Research | Destroyed 6S-H0T 11583 | -3/Research | Found Prototype Device 11583 | -3/Research | Identified Zeronet Interface 11589 | -3/Research | Found Prototype Processor 11589 | -3/Research | Identified Exp. Targeting Computer 11661 | -3/Research | Found Prototype Device 11707 | -3/Research | Build established: Wizard-Scout 11900 | -3/Research | Spotted B-86 Titan 12028 | -3/Research | Fabricated Diametric Drive (x1) 12120 | -3/Research | Fabricated Diametric Drive? 12328 | -3/Research | Fabricated Diametric Drive? 12999 | -3/Research | Spotted B-86 Titan 13073 | -3/Research | Discovered new exit (range 4) 13128 | -3/Research | Identified Adv. Kinecellerator 13264 | -3/Research | Reached level 29 13380 | -3/Research | Identified exit to Quarantine 13380 | -3/Research | Central database locked down 13444 | -3/Research | Unchained authorized (CL-0N3) 13456 | -3/Research | Spotted B-90 Cyclops 13457 | -3/Research | Entered Quarantine 13486 | -3/Quarantine | Found Alien Artifact 13486 | -3/Quarantine | Identified Transdimensional Reconstructor 13486 | -3/Quarantine | Warped through subspace 13504 | -3/Quarantine | Scanned by Researcher 13548 | -3/Quarantine | Central database locked down 13574 | -3/Quarantine | Found Alien Energy Cannon 13574 | -3/Quarantine | Identified Core Cannon 13655 | -3/Quarantine | Found Alien Artifact 13655 | -3/Quarantine | Identified Terrabomb 13655 | -3/Quarantine | Used Terrabomb 13661 | -3/Quarantine | Unchained authorized (CL-0N3) 13677 | -3/Quarantine | Found Alien Reactor 13677 | -3/Quarantine | Identified Matter Drive 13731 | -3/Quarantine | Found Alien Artifact 13731 | -3/Quarantine | Identified Dimensional Node Initializer 13731 | -3/Quarantine | Initialized slip node 13736 | -3/Quarantine | Found Alien Artifact 13736 | -3/Quarantine | Identified Hpw. Transdimensional Reconstructor 13736 | -3/Quarantine | Warped through subspace to slip node 13753 | -3/Quarantine | Core integrity fell below 50% 13777 | -3/Quarantine | Cryocooling Duct disabled 13777 | -3/Quarantine | Cryocooling Duct disabled 13779 | -3/Quarantine | Core integrity fell below 20% 13792 | -3/Quarantine | Ambient heat levels rising (+40) 13792 | -3/Quarantine | Non-combat units ordered to evacuate 13792 | -3/Quarantine | Combat units ordered to evacuate 13839 | -3/Quarantine | Met incapacitated Sigix Warrior 13839 | -3/Quarantine | Lockdown squad dispatched 13847 | -3/Quarantine | Acquired the access code to the Sigix quarantine chamber 13848 | -3/Quarantine | Unlocked Sigix quarantine chamber 13849 | -3/Quarantine | Found Sigix Containment Pod 13859 | -3/Quarantine | Found Alien Artifact 13859 | -3/Quarantine | Identified Subatomic Replicator 13864 | -3/Quarantine | Found Alien Artifact 13864 | -3/Quarantine | Identified Core Reset Matrix 13864 | -3/Quarantine | Reached level 30 13864 | -3/Quarantine | Used Core Reset Matrix 13868 | -3/Quarantine | Sensed 7 artifacts in vicinity 13884 | -3/Quarantine | Spotted Thunder 13888 | -3/Quarantine | Destroyed Thunder 13888 | -3/Quarantine | Thunder reconstituted as CL-0N3 13892 | -3/Quarantine | Quarantine Guard activated 13894 | -3/Quarantine | Identified exit to Research 13894 | -3/Quarantine | Central database locked down 13899 | -3/Quarantine | Spotted Lightning 13907 | -3/Quarantine | Destroyed Lightning 13910 | -3/Quarantine | Spotted Lightning 13912 | -3/Quarantine | Spotted Lightning 13917 | -3/Quarantine | Destroyed Lightning 13925 | -3/Quarantine | Destroyed Lightning 13930 | -3/Quarantine | Spotted Quarantine Guard 13937 | -3/Quarantine | Destroyed Quarantine Guard 13943 | -3/Quarantine | Found Prototype Processor 13943 | -3/Quarantine | Identified Exp. Targeting Computer 13947 | -3/Quarantine | Found Prototype Device 13947 | -3/Quarantine | Identified Exp. EM Shield 13957 | -3/Quarantine | Used Subatomic Replicator to replicate Diametric Drive 13974 | -3/Quarantine | Spotted Quarantine Guard 13974 | -3/Quarantine | Destroyed Quarantine Guard 13989 | -3/Quarantine | Spotted Quarantine Guard 13994 | -3/Quarantine | Spotted Quarantine Guard 13999 | -3/Quarantine | Destroyed Quarantine Guard 14002 | -3/Quarantine | Destroyed Quarantine Guard 14019 | -3/Quarantine | Spotted Quarantine Guard 14023 | -3/Quarantine | Destroyed Quarantine Guard 14041 | -3/Quarantine | Found Sigix Terminator 14054 | -3/Quarantine | Spotted Quarantine Guard 14060 | -3/Quarantine | Found Sigix Corpse 14065 | -3/Quarantine | Spotted Quarantine Guard 14082 | -3/Quarantine | Destroyed Quarantine Guard 14091 | -3/Quarantine | Central database locked down 14091 | -3/Quarantine | Central database locked down 14134 | -3/Quarantine | H-77 Assassin reconstituted as Cetus Guard 14134 | -3/Quarantine | Spotted Cetus Guard 14146 | -3/Quarantine | Destroyed Cetus Guard 14146 | -3/Quarantine | Cetus Guard reconstituted as CL-0N3 14156 | -3/Quarantine | Spotted Quarantine Guard 14166 | -3/Quarantine | Destroyed Quarantine Guard 14175 | -3/Quarantine | Found Prototype Device 14175 | -3/Quarantine | Identified Exp. Thermal Shield 14254 | -3/Quarantine | Spotted Quarantine Guard 14258 | -3/Quarantine | Destroyed Quarantine Guard 14304 | -3/Quarantine | Repaired Prc. Energy Filter 14332 | -3/Quarantine | Repaired Cld. Plasma Cannon 14399 | -3/Quarantine | Cryocooling Duct disabled 14401 | -3/Quarantine | Cryocooling Duct disabled 14414 | -3/Quarantine | Ambient heat levels rising (+20) 14416 | -3/Quarantine | Ambient heat levels rising (+20) 14453 | -3/Quarantine | Destroyed Quarantine Guard 14509 | -3/Quarantine | Spotted Quarantine Guard 14516 | -3/Quarantine | Entered Research 14517 | -2/Research | Emitted hypermatrix ping 14517 | -2/Research | Core integrity fell below 50% 14518 | -2/Research | Reached level 31 14522 | -2/Research | Assembled emerged from beneath the floor 14633 | -2/Research | Identified exit to Testing 14652 | -2/Research | Lost 3 allies 14660 | -2/Research | Assembled emerged from beneath the floor 14661 | -2/Research | Destroyed 8 combat bots 14691 | -2/Research | Found Prototype Device 14691 | -2/Research | Identified Exp. Thermal Defense Suite 14720 | -2/Research | Assembled emerged from beneath the floor 14726 | -2/Research | Spotted B-90 Cyclops 14731 | -2/Research | Assembled emerged from beneath the floor 14743 | -2/Research | Destroyed B-90 Cyclops 14780 | -2/Research | Reached level 32 14804 | -2/Research | Assembled emerged from beneath the floor 14820 | -2/Research | Destroyed 7 combat bots 14836 | -2/Research | Lost 7 allies 14853 | -2/Research | Found Unknown Device 14853 | -2/Research | Identified Adv. Force Booster 14873 | -2/Research | Assembled emerged from beneath the floor 14928 | -2/Research | P-80 Master assimilated allied Administrator 9a 14934 | -2/Research | Fabricated Diametric Drive (x1) 14968 | -2/Research | Lost 5 allies 14974 | -2/Research | Spotted B-90 Cyclops 14984 | -2/Research | Allies destroyed B-90 Cyclops 15012 | -2/Research | Upgraded with Power slot (x1) 15012 | -2/Research | Upgraded with Propulsion slot (x1) 15016 | -2/Research | First assault squad dispatched 15081 | -2/Research | Found Prototype Device 15081 | -2/Research | Identified Thermal Barrier 15149 | -2/Research | Fabricated Diametric Drive? 15155 | -2/Research | Identified exit to Access 15159 | -2/Research | Found Unknown Device 15159 | -2/Research | Identified Launcher Loader 15167 | -2/Research | Lost 6 allies 15186 | -2/Research | Found Prototype Device 15186 | -2/Research | Identified Exp. Weapon Cycler 15204 | -2/Research | Found Prototype Device 15204 | -2/Research | Identified Adv. Particle Accelerator 15278 | -2/Research | Assembled emerged from beneath the floor 15328 | -2/Research | Lost 8 allies 15330 | -2/Research | Fabricated Cld. Plasma Cannon? 15342 | -2/Research | Entered Testing 15344 | -2/Testing | Reached level 33 15353 | -2/Testing | Destroyed 11 combat bots 15444 | -2/Testing | Destroyed 7 combat bots 15464 | -2/Testing | Build established: Hacker-Scout 15486 | -2/Testing | Repaired Cld. Plasma Cannon 15510 | -2/Testing | Found Prototype Hackware 15510 | -2/Testing | Identified Ghost Barrier 15592 | -2/Testing | First assault squad dispatched 15611 | -2/Testing | Garrison activated, responded to threat 15654 | -2/Testing | Core integrity fell below 20% 15675 | -2/Testing | System corruption reached 10% 15683 | -2/Testing | Destroyed 13 combat bots 15770 | -2/Testing | Build established: Wizard-Scout 15798 | -2/Testing | Destroyed 10 combat bots 15826 | -2/Testing | Protovariant out of control (PG-AWPWXG02BU) 15826 | -2/Testing | Unleashed a protovariant (PG-AWPWXG02BU) 15829 | -2/Testing | Spotted PG-AWPWXG02BU 15836 | -2/Testing | Destroyed PG-AWPWXG02BU 15924 | -2/Testing | Spotted Fortress 16081 | -2/Testing | Spotted Striker 16124 | -2/Testing | Spotted Alpha 7 16134 | -2/Testing | Destroyed Alpha 7 16172 | -2/Testing | Spotted Striker 16179 | -2/Testing | Destroyed Striker 16183 | -2/Testing | Destroyed Striker 16338 | -2/Testing | Repaired Cld. Plasma Cannon 16380 | -2/Testing | Reached level 34 16396 | -2/Testing | Repaired Broken Prc. Energy Filter? 16605 | -2/Testing | Found Unknown Device 16605 | -2/Testing | Identified Quantum Capacitor 16756 | -2/Testing | Unchained authorized (CL-0N3) 16967 | -2/Testing | Destroyed 8 combat bots 17072 | -2/Testing | R-10 Processor reconstituted as Combat Programmer 17075 | -2/Testing | Destroyed Combat Programmer 17075 | -2/Testing | Combat Programmer reconstituted as CL-0N3 17110 | -2/Testing | High security lockdown imminent 17141 | -2/Testing | Destroyed 11 combat bots 17190 | -2/Testing | High security lockdown engaged 17266 | -2/Testing | Discovered new exit (range 6) 17266 | -2/Testing | Discovered new exit (range 7) 17267 | -2/Testing | Identified exit to Section 7 17268 | -2/Testing | Identified exit to Protoforge 17268 | -2/Testing | Entered Section 7 17269 | -2/Section 7 | Detected hypermatrix surge 17269 | -2/Section 7 | Sensed 22 artifacts in vicinity 17270 | -2/Section 7 | Spotted S7 Guard 17414 | -2/Section 7 | Repaired Broken Prc. Energy Filter 17504 | -2/Section 7 | Spotted S7 Guard 17510 | -2/Section 7 | Destroyed S7 Guard 17519 | -2/Section 7 | Found Core Physics Calibrator 17583 | -2/Section 7 | Found Integrated Reactor 17583 | -2/Section 7 | Installed Integrated Reactor, increased core energy generation (+10) 17632 | -2/Section 7 | Scanned by Researcher 17633 | -2/Section 7 | Intercept squad dispatched 17635 | -2/Section 7 | Spotted Tracker 17636 | -2/Section 7 | Spotted Tracker 17640 | -2/Section 7 | Spotted Combat Programmer 17640 | -2/Section 7 | Destroyed Tracker 17641 | -2/Section 7 | Spotted Combat Programmer 17643 | -2/Section 7 | Destroyed Combat Programmer 17650 | -2/Section 7 | Destroyed Tracker 17659 | -2/Section 7 | Destroyed Combat Programmer 17707 | -2/Section 7 | Destroyed 15 combat bots 17877 | -2/Section 7 | Discovered exit to Access (range 14) 18018 | -2/Section 7 | First assault squad dispatched 18090 | -2/Section 7 | Spotted Alpha 7 18100 | -2/Section 7 | Found Integrated Reactor 18100 | -2/Section 7 | Installed Integrated Reactor, increased core energy generation (+10) 18196 | -2/Section 7 | Intercept squad dispatched 18202 | -2/Section 7 | Spotted Tracker 18202 | -2/Section 7 | Spotted Tracker 18203 | -2/Section 7 | Spotted Tracker 18207 | -2/Section 7 | Reached level 35 18207 | -2/Section 7 | Destroyed Tracker 18214 | -2/Section 7 | Spotted Combat Programmer 18216 | -2/Section 7 | Spotted Combat Programmer 18217 | -2/Section 7 | Spotted Combat Programmer 18221 | -2/Section 7 | Destroyed Combat Programmer 18225 | -2/Section 7 | Destroyed Combat Programmer 18230 | -2/Section 7 | Destroyed Combat Programmer 18236 | -2/Section 7 | Destroyed Tracker 18244 | -2/Section 7 | Destroyed Tracker 18282 | -2/Section 7 | Destroyed 7 combat bots 18404 | -2/Section 7 | Spotted Alpha 7 18405 | -2/Section 7 | Destroyed Alpha 7 18415 | -2/Section 7 | Destroyed Alpha 7 18432 | -2/Section 7 | Found Integrated Dissipator 18432 | -2/Section 7 | Installed Integrated Dissipator, increased core heat dissipation (+20) 18447 | -2/Section 7 | Spotted B-99 Colossus 18456 | -2/Section 7 | Spotted Executioner 18457 | -2/Section 7 | Intercept squad dispatched 18463 | -2/Section 7 | Spotted Tracker 18465 | -2/Section 7 | Spotted Tracker 18466 | -2/Section 7 | Spotted Tracker 18471 | -2/Section 7 | Destroyed Tracker 18476 | -2/Section 7 | Destroyed Tracker 18479 | -2/Section 7 | Destroyed Tracker 18483 | -2/Section 7 | Spotted Combat Programmer 18486 | -2/Section 7 | Destroyed Combat Programmer 18486 | -2/Section 7 | Spotted Combat Programmer 18486 | -2/Section 7 | Spotted Combat Programmer 18488 | -2/Section 7 | Destroyed Combat Programmer 18490 | -2/Section 7 | Destroyed Combat Programmer 18495 | -2/Section 7 | Spotted Executioner 18509 | -2/Section 7 | Destroyed Executioner 18514 | -2/Section 7 | Destroyed Executioner 18535 | -2/Section 7 | Destroyed 8 combat bots 18536 | -2/Section 7 | Found Prototype Device 18536 | -2/Section 7 | Identified Exp. Phase Shifter 18539 | -2/Section 7 | Found Prototype Processor 18539 | -2/Section 7 | Identified Exp. Targeting Computer 18541 | -2/Section 7 | Found Prototype Device 18541 | -2/Section 7 | Identified Adv. Kinecellerator 18572 | -2/Section 7 | Found Integrated Dissipator 18572 | -2/Section 7 | Installed Integrated Dissipator, increased core heat dissipation (+20) 18574 | -2/Section 7 | Found Integrated Dissipator 18574 | -2/Section 7 | Installed Integrated Dissipator, increased core heat dissipation (+20) 18576 | -2/Section 7 | Found Integrated Dissipator 18576 | -2/Section 7 | Installed Integrated Dissipator, increased core heat dissipation (+20) 18586 | -2/Section 7 | Found LRC Matter Compressor 18586 | -2/Section 7 | Installed LRC Matter Compressor, increased matter storage capacity (+125) 18590 | -2/Section 7 | Found LRC Insulator 18590 | -2/Section 7 | Installed LRC Insulator, 1 resistance modified: EM +25% 18593 | -2/Section 7 | Found LRC Armor 18593 | -2/Section 7 | Installed LRC Armor, increased core integrity (+250) 18633 | -2/Section 7 | Activated Sigix Exoskeleton 18633 | -2/Section 7 | Received instructions from Sigix Warrior 18640 | -2/Section 7 | Spotted Executioner 18640 | -2/Section 7 | Spotted Executioner 18648 | -2/Section 7 | Destroyed Executioner 18650 | -2/Section 7 | Destroyed Executioner 18657 | -2/Section 7 | Spotted Striker 18697 | -2/Section 7 | Spotted Striker 18706 | -2/Section 7 | Destroyed Striker 18711 | -2/Section 7 | Destroyed Striker 18750 | -2/Section 7 | Spotted Striker 18750 | -2/Section 7 | Spotted Striker 18760 | -2/Section 7 | Intercept squad dispatched 18763 | -2/Section 7 | Found Sigix Shearcannon 18763 | -2/Section 7 | Allies destroyed Striker 18767 | -2/Section 7 | Destroyed Striker 18780 | -2/Section 7 | Spotted Tracker 18788 | -2/Section 7 | Spotted Tracker 18788 | -2/Section 7 | Spotted Tracker 18791 | -2/Section 7 | Destroyed Tracker 18793 | -2/Section 7 | Destroyed Tracker 18817 | -2/Section 7 | Sigix Exoskeleton integrity reduced to 80% 18832 | -2/Section 7 | Spotted Combat Programmer 18833 | -2/Section 7 | Spotted Combat Programmer 18836 | -2/Section 7 | Destroyed Combat Programmer 18839 | -2/Section 7 | Allies destroyed Combat Programmer 18850 | -2/Section 7 | Spotted Combat Programmer 18889 | -2/Section 7 | Destroyed Investigator 18923 | -2/Section 7 | Sigix Exoskeleton integrity reduced to 60% 18966 | -2/Section 7 | Destroyed 37 combat bots 19041 | -2/Section 7 | Found Sigix Sheargun 19043 | -2/Section 7 | Found Sigix Sheargun 19062 | -2/Section 7 | Sigix Exoskeleton integrity reduced to 40% 19066 | -2/Section 7 | Spotted Executioner 19066 | -2/Section 7 | Spotted Executioner 19066 | -2/Section 7 | Spotted Striker 19072 | -2/Section 7 | Sigix Exoskeleton integrity reduced to 20% 19074 | -2/Section 7 | Allies destroyed Executioner 19111 | -2/Section 7 | Sterilization system engaged 19111 | -2/Section 7 | Non-combat units ordered to evacuate 19126 | -2/Section 7 | Spotted Striker 19128 | -2/Section 7 | Spotted Striker 19128 | -2/Section 7 | Spotted Striker 19128 | -2/Section 7 | Spotted Investigator 19129 | -2/Section 7 | Spotted Executioner 19129 | -2/Section 7 | Spotted Striker 19130 | -2/Section 7 | Spotted Executioner 19130 | -2/Section 7 | Spotted Executioner 19130 | -2/Section 7 | Spotted Striker 19211 | -2/Section 7 | Combat units ordered to evacuate 19231 | -2/Section 7 | Entered Access 19233 | -1/Access | Reached level 36 19311 | -1/Access | Intercept squad dispatched 19346 | -1/Access | Spotted Tracker 19346 | -1/Access | Destroyed Tracker 19349 | -1/Access | Destroyed Tracker 19355 | -1/Access | Found Exp. Phase Shifter 19384 | -1/Access | Fabricated Multireflex Exoskeleton (x1) 19425 | -1/Access | Spotted Combat Programmer 19444 | -1/Access | Destroyed Combat Programmer 19465 | -1/Access | Destroyed 8 combat bots 19481 | -1/Access | First assault squad dispatched 19576 | -1/Access | Build established: Alien-Sprinter 19612 | -1/Access | Upgraded with Power slot (x1) 19921 | -1/Access | Unchained authorized (CL-0N3) 19983 | -1/Access | Discovered new exit (range 5) 19984 | *** | Heading to fleet! Last Messages --------------- 19951_ Connecting with Garrison Access... >>Seal Access door sealed. 19961_ Quantum Shear penetrates Wall. 19961_ Quantum Shear penetrates Anti-Orbital Battery. 19961_ Anti-Orbital Battery disabled. 19968_ Quantum Shear penetrates Wall. 19977_ U-05 Engineer builds a Wall. 19980_ Penetrated by Slug. 19980_ Slug penetrates Wall. 19981_ ALERT: Unidentified disturbance in Zone 2H, multiple assault carriers dispatched. 19982_ Connecting with Terminal... >>Open(Door) Sealed Barrier opened. 19983_ The Access Shell folds into the floor. 19983_ EXIT=FOUND [Achievement: Home At Last?] [Achievement: Winner's Signature] Map ----- +----------------------------------------------------+ | ?????????????????##########"########## ##!! | | ?????????????????##########""######### ##!! | | ?????????????????## # ##! | | ?????????????????## # ## | | ?????????????????## """"" # ## | | ?????????????????##"""""""" # #######+## | | ?????????????????##""""" # " | | ?????????????????## """"" # # | | ?????????????????## ? # "" | | ?????????????????## # # "" | | ?????????????????##################### # """""" | | ?????????????????##################### # """""" | | ????????????????????????????????????## # "" | | ????????????????????????????????????## # = "" | | ????????????????????????????????????## # | | ????????????????????????????????????## + | | ????????????????????????????????????## # | | ????????????????????????????????????## # | | ????????????????????????????#####???## ########## | | ???????????????????################### ## # | | ???????????????????########### ####### ##???????? | | ???????????????????"" ##?????? # | | ????????????????????" ##?????? # | | ????????????????????" ##?????? + | | ????????????????????" ##?????? # | | ????????????????????" "@ ##?????? # | | ????????????????????" "" ##???????? | | ????????????????????" ##???????? | | ????????????????????" k ##???????? | | ????????????????????" """ """ ##???????? | | ???????????????????"" """T""" ##???????? | | ???????????????????########### ####### ##???????? | | ???????????????????################### ##???????? | | ????????????????????????????#####????? ##???????? | | ?????????????????????????????????????? # ???????? | | ?????????????????????????????????????? # ???????? | | ?????????????????????????????????????? / ???????? | | ?????????????????????????????????????? # ???????? | | ??????????????????????????????????????? # ???????? | | ??????????????????????????????????????? # ???????? | | ?????????????????????????????????????????????????? | | ?????????????????????????????????????????????????? | | ?????????????????????????????????????????????????? | | ?????????????????????????????????????????????????? | | ?????????????????????????????????????? ??????????? | | ???????????????????????????????????? ??????????? | | ????????????????????????????????????## ??????????? | | ???????????????????????????????????? # ??????????? | | ???????????????????????????????????? # ?????????? | | ???????????????????????????????????? # ?????????? | +----------------------------------------------------+ Best States ------------- Heat Dissipation 238 Energy Generation 95 Energy Capacity 505 Matter Stores 425 Matter Capacity 425 Sight Range 25 Robot Scan Range 42 Terrain Scan Range 24 Terrain Scan Density 10 Cloak Strength 4 Power Amplification 20 Additional Mass Support 25 Corruption Containment 8 Corruption Block 20 Armor Coverage 225 Resistance: KI 20 Resistance: TH 20 Resistance: EM 75 Weapon Cycling 25 Melee Speed Boost 20 Phase Shifting 20 Evasion (%) 99 Targeting Accuracy 12 Melee Accuracy 6 Target Analysis 8 Core Analysis 6 Matter Filtering 50 Energy Filtering 50 Particle Charging 50 Offensive Hacking 56 Defensive Hacking 51 Item Schematics ----------------- Coolant Network | -3/Quarantine | Archive Centrium Medium Armor Plating | -3/Quarantine | Archive Prc. Phase Gun | -3/Quarantine | Archive Hellfire Missile Launcher | -3/Quarantine | Archive Com. Particle Reactor | -3/Quarantine | Archive Exp. Core Analyzer | -3/Quarantine | Hacked Diametric Drive | -2/Research | Hacked Cld. Plasma Cannon | -2/Research | Scanalyzed Exp. Hacking Suite | -2/Testing | Archive Imp. Q-thruster | -2/Testing | Archive Thermal Barrier | -2/Testing | Archive Shock Maul | -2/Testing | Archive Cld. Nuclear Pulse Thruster | -2/Testing | Archive Com. Linear Accelerator | -2/Testing | Archive Exp. Weapon Cycler | -2/Testing | Scanalyzed Plasma Lance | -2/Testing | Archive Exp. Biometal Leg | -2/Testing | Archive Adv. EM Disruption Field | -2/Section 7 | Scanalyzed Imp. KE Penetrator | -2/Section 7 | Archive Particle Accelerator | -2/Section 7 | Archive Hvy. Wave Gun | -2/Section 7 | Archive Centrium Greatsword | -2/Section 7 | Archive Exp. Sensor Array | -2/Section 7 | Archive Imp. Lightning Gun | -2/Section 7 | Archive Tesla Bomb Launcher | -2/Section 7 | Archive Prc. Energy Filter | -2/Section 7 | Archive Exp. Cooling System | -2/Section 7 | Archive Centrium Heavy Treads | -2/Section 7 | Archive Multireflex Exoskeleton | -2/Section 7 | Archive Enh. Multireflex Exoskeleton | -2/Section 7 | Archive Robot Schematics ------------------ B-74 Champion | -2/Testing | Archive A-02 Transporter | -2/Testing | Archive W-44 Eye | -2/Section 7 | Archive A-15 Conveyor | -2/Section 7 | Archive K-01 Serf | -2/Section 7 | Archive Fabricated ------------ Cld. Plasma Cannon | x1 | -5/Factory Cld. Plasma Cannon | x1 | -5/Factory Cld. Plasma Cannon | x1 | -5/Factory Diametric Drive | x1 | -3/Research Diametric Drive | x1 | -3/Research Diametric Drive | x1 | -3/Research Diametric Drive | x1 | -2/Research Diametric Drive | x1 | -2/Research Cld. Plasma Cannon | x1 | -2/Research Multireflex Exoskeleton | x1 | -1/Access Repaired ---------- Cld. Plasma Cannon | 98% | -5/Factory | Broken Cld. Plasma Cannon | 99% | -4/Factory | Broken Prc. Energy Filter | 6% | -3/Quarantine Cld. Plasma Cannon | 43% | -3/Quarantine Cld. Plasma Cannon | 28% | -2/Testing Cld. Plasma Cannon | 1% | -2/Testing Prc. Energy Filter | 16% | -2/Testing | Broken Prc. Energy Filter | 93% | -2/Section 7 | Broken Studied --------- None Alien Tech Used ----------------- Transdimensional Reconstructor Core Cannon Terrabomb Matter Drive Dimensional Node Initializer High-powered Transdimensional Reconstructor Subatomic Replicator Core Reset Matrix Sigix Terminator Core Physics Calibrator Integrated Reactor Integrated Dissipator LRC Matter Compressor LRC Insulator LRC Armor Sigix Shearcannon Sigix Sheargun Achievements -------------- A Problem For Future Me Alien Roots Artifact Hunter Beloved Bigger And Badder Boltbath Botjacking Coming In Hot Everyone Must Die Fitting Room Home At Last? Hornet's Nest I Laugh At Your Crits IP Theft Incoming! Nope Overkill Preemptive Strike Rampage Signature Confirmed Spot Them First Tailor-made We Are Legion Winner's Signature Challenges ------------ None RPGLIKE | -11 -10 -9 -8 -7 -6 -5 -4 -3 -3 -2 -2 -2 -1 --------- Run | Yrd Mat Mat Mat Fac Fac Fac Fac Res Qua Res Tes Sec Acc Levels Raised 35 | . 3 5 4 4 2 4 4 2 1 2 2 1 1 XP Earned 56598 | 3000 4887 8097 5823 6167 3070 5398 6196 2463 2096 3687 2264 2011 1439 XP Spent 54600 | 3000 2795 9130 6075 5875 2975 6130 5570 1930 2925 3000 2875 1520 800 Upgrades 114 | 9 7 22 10 6 7 14 11 4 12 3 4 4 1 Power Slot 2 | . . . . . . . . . . 1 . . 1 Propulsion Slot 5 | 1 1 1 . . . 1 . . . 1 . . . Utility Slot 6 | 1 1 . 1 2 . . 1 . . . . . . Weapon Slot 2 | 1 . . . . . 1 . . . . . . . Core Integrity 18 | . . . . . . 4 4 . 10 . . . . Heat Dissipation 19 | . 2 3 1 . . 3 3 3 . . . 4 . Energy Generation 5 | . . 1 . . . 1 . . . 1 2 . . Energy Storage 4 | . . . . . . 1 . . 1 . 2 . . Mass Support 3 | 1 . . . 2 . . . . . . . . . Inventory Capacity 4 | 1 1 . 1 . . . 1 . . . . . . Sight Range 2 | . . 2 . . . . . . . . . . . Sensor Range 13 | 1 1 1 2 1 6 1 . . . . . . . Ranged Accuracy 8 | 2 . 2 1 1 . 2 . . . . . . . Hack Attack % 6 | . . 3 1 . . . . 1 1 . . . . Hack Defense % 5 | . . 4 . . 1 . . . . . . . . KI Resistance % 4 | . . 2 1 . . . 1 . . . . . . TH Resistance % 4 | . . 2 1 . . . 1 . . . . . . TH Damage % 4 | 1 1 1 1 . . . . . . . . . . Protomatter Created 10037 | . 154 341 709 251 551 515 1351 211 161 659 1971 2321 842 Integrity Restored 17850 | . 367 737 848 392 783 929 2269 681 483 1296 3755 3774 1536 Core 15800 | . 354 603 660 316 618 785 1792 640 483 1296 3475 3587 1191 Parts 2050 | . 13 134 188 76 165 144 477 41 . . 280 187 345 Protomatter Decayed 2387 | . 18 8 254 119 189 207 404 103 . 140 310 546 89 Game ------ Seed GrenadeGaussConstruct Manual? 0 Play Time 12:13:16 Cumulative 94.5 hours Start 2025.10.26 @ 23:24:09 End 2025.10.28 @ 22:27:08 Sessions 5 Manual Loads 0 Difficulty Rogue Special Mode Winter2019/RPGLIKE Game No. 42 Rogue 42 Adventurer 0 Explorer 0 Win Type 2 Total 3 Types 1/0/1/1/0/0/0/0/0/0 Lore% 42 Gallery% 40 Achievement% 36 Wizard Run 0 Options --------- Layout 2 ASCII 0 Keyboard 0 Movement Mouse Keybinds 1 Fullscreen 1 Font 24/Terminus Map View 50x44 Zoom Use 0% Tactical HUD 1 Map Filters NONE Filters NONE Steam 1 RUN: a2ef1c49-b67b-4619-9a92-6aec87bbdb82